[Event "Late-Titled-Tuesday-Blitz-April-16-2024"]
[Site "Chess.com"]
[Date "2024.04.16"]
[Round "4"]
[White "PositionalPanther"]
[Black "Indefatigable11"]
[Result "0-1"]
[WhiteElo "2511"]
[BlackElo "2378"]
[TimeControl "180+1"]
[EndTime "14:38:57 PDT"]
[Termination "Indefatigable11 won by checkmate"]

1. a3 {[%clk 0:03:00.2]} 1... d5 {[%clk 0:02:58.2]} 2. b4 {[%clk 0:02:59.3]}
2... e5 {[%clk 0:02:58.1]} 3. Bb2 {[%clk 0:02:59.7]} 3... Bd6 {[%clk 0:02:57.5]}
4. e3 {[%clk 0:02:59.9]} 4... Ne7 {[%clk 0:02:56.1]} 5. c4 {[%clk 0:03:00.3]}
5... c6 {[%clk 0:02:55.8]} 6. Nf3 {[%clk 0:02:56.3]} 6... Nd7 {[%clk 0:02:54.6]}
7. Nc3 {[%clk 0:02:46.7]} 7... O-O {[%clk 0:02:52.2]} 8. e4 {[%clk 0:02:33.1]}
8... d4 {[%clk 0:02:48.7]} 9. Ne2 {[%clk 0:02:27.8]} 9... c5 {[%clk 0:02:47.1]}
10. b5 {[%clk 0:02:25.3]} 10... f5 {[%clk 0:02:42.9]} 11. d3 {[%clk 0:02:24.7]}
11... Nf6 {[%clk 0:02:39.8]} 12. Ng3 {[%clk 0:02:22]} 12... fxe4 {[%clk
0:02:38.7]} 13. dxe4 {[%clk 0:02:22.9]} 13... Ng6 {[%clk 0:02:34.6]} 14. Bd3
{[%clk 0:02:19]} 14... Nf4 {[%clk 0:02:32.2]} 15. Rg1 {[%clk 0:02:12.8]} 15...
Bg4 {[%clk 0:02:30.7]} 16. Bc1 {[%clk 0:02:06.5]} 16... N6h5 {[%clk 0:02:21.2]}
17. Ne2 {[%clk 0:01:49.4]} 17... Nxg2+ {[%clk 0:02:14.9]} 18. Rxg2 {[%clk
0:01:49.3]} 18... Bxf3 {[%clk 0:02:15.2]} 19. Rg5 {[%clk 0:01:37.4]} 19... h6
{[%clk 0:02:11]} 20. Rg1 {[%clk 0:01:35.1]} 20... Qh4 {[%clk 0:02:04.5]} 21. Rg6
{[%clk 0:00:55.4]} 21... Be7 {[%clk 0:01:44.5]} 22. Qd2 {[%clk 0:00:51]} 22...
Bg5 {[%clk 0:01:25.6]} 23. Rxg5 {[%clk 0:00:43.7]} 23... hxg5 {[%clk 0:01:24.8]}
24. Qxg5 {[%clk 0:00:44.6]} 24... Qxh2 {[%clk 0:01:19.6]} 25. Qg1 {[%clk
0:00:25.9]} 25... Qh4 {[%clk 0:01:04.8]} 26. Bg5 {[%clk 0:00:23.1]} 26... Qg4
{[%clk 0:01:04.7]} 27. Qxg4 {[%clk 0:00:21.9]} 27... Bxg4 {[%clk 0:01:05.2]} 28.
Be7 {[%clk 0:00:09.3]} 28... Rfc8 {[%clk 0:00:58.5]} 29. Bd6 {[%clk 0:00:09.4]}
29... b6 {[%clk 0:00:57.2]} 30. Bxe5 {[%clk 0:00:09.5]} 30... Re8 {[%clk
0:00:55.9]} 31. Bh2 {[%clk 0:00:09.6]} 31... Bf3 {[%clk 0:00:54.4]} 32. e5
{[%clk 0:00:04.4]} 32... g5 {[%clk 0:00:52.3]} 33. Kd2 {[%clk 0:00:04.8]} 33...
g4 {[%clk 0:00:51.2]} 34. Rg1 {[%clk 0:00:04.9]} 34... Kf7 {[%clk 0:00:49.9]}
35. Nf4 {[%clk 0:00:05.4]} 35... Nxf4 {[%clk 0:00:45.6]} 36. Bxf4 {[%clk
0:00:06.3]} 36... Ke6 {[%clk 0:00:42.4]} 37. Re1 {[%clk 0:00:03.3]} 37... Rf8
{[%clk 0:00:41.4]} 38. Bg3 {[%clk 0:00:03.8]} 38... Rae8 {[%clk 0:00:37.4]} 39.
a4 {[%clk 0:00:04.3]} 39... Kd7 {[%clk 0:00:26.5]} 40. Ra1 {[%clk 0:00:04]}
40... Bb7 {[%clk 0:00:21.6]} 41. a5 {[%clk 0:00:03.3]} 41... Rf3 {[%clk
0:00:16.7]} 42. axb6 {[%clk 0:00:03.6]} 42... axb6 {[%clk 0:00:16.8]} 43. Ra7
{[%clk 0:00:04.2]} 43... Kc8 {[%clk 0:00:16.5]} 44. Bg6 {[%clk 0:00:04.2]} 44...
Re6 {[%clk 0:00:12.1]} 45. Bh5 {[%clk 0:00:04.4]} 45... Rxg3 {[%clk 0:00:07.7]}
46. fxg3 {[%clk 0:00:04.1]} 46... Rxe5 {[%clk 0:00:07.9]} 47. Bxg4+ {[%clk
0:00:04.7]} 47... Kb8 {[%clk 0:00:08.2]} 48. Ra1 {[%clk 0:00:02.7]} 48... Re3
{[%clk 0:00:07.4]} 49. Rg1 {[%clk 0:00:01.7]} 49... Be4 {[%clk 0:00:05.3]} 50.
Be2 {[%clk 0:00:02.2]} 50... Rc3 {[%clk 0:00:04.7]} 51. g4 {[%clk 0:00:02.3]}
51... Rc2+ {[%clk 0:00:04.9]} 52. Kd1 {[%clk 0:00:02.7]} 52... d3 {[%clk
0:00:03.5]} 53. Bf1 {[%clk 0:00:02.5]} 53... Bf3+ {[%clk 0:00:03.1]} 54. Ke1
{[%clk 0:00:03]} 54... d2+ {[%clk 0:00:03.3]} 55. Kf2 {[%clk 0:00:03.5]} 55...
d1=Q+ {[%clk 0:00:03.3]} 56. Kg3 {[%clk 0:00:02.3]} 56... Qd6+ {[%clk
0:00:03.2]} 57. Kh4 {[%clk 0:00:02.5]} 57... Qh6+ {[%clk 0:00:02.5]} 58. Kg3
{[%clk 0:00:01.9]} 58... Bb7 {[%clk 0:00:02.9]} 59. Bg2 {[%clk 0:00:01.5]} 59...
Qd6+ {[%clk 0:00:02.7]} 60. Kh3 {[%clk 0:00:01.7]} 60... Rxg2 {[%clk 0:00:03]}
61. Rxg2 {[%clk 0:00:01.6]} 61... Bxg2+ {[%clk 0:00:03.7]} 62. Kxg2 {[%clk
0:00:02.3]} 62... Qd3 {[%clk 0:00:04]} 63. Kh2 {[%clk 0:00:02.6]} 63... Qxc4
{[%clk 0:00:04.7]} 64. Kg2 {[%clk 0:00:03.5]} 64... Qxb5 {[%clk 0:00:05.2]} 65.
Kf2 {[%clk 0:00:04.4]} 65... Qe8 {[%clk 0:00:05.8]} 66. Kf1 {[%clk 0:00:04.8]}
66... Qf7+ {[%clk 0:00:06.5]} 67. Kg2 {[%clk 0:00:04.5]} 67... Qg6 {[%clk
0:00:07.2]} 68. Kg1 {[%clk 0:00:05.4]} 68... Kc7 {[%clk 0:00:06.9]} 69. g5
{[%clk 0:00:06.3]} 69... Kd6 {[%clk 0:00:07.6]} 70. Kf2 {[%clk 0:00:07.2]} 70...
Ke5 {[%clk 0:00:07.9]} 71. Ke1 {[%clk 0:00:08.1]} 71... Qxg5 {[%clk 0:00:08.3]}
72. Kd1 {[%clk 0:00:08.2]} 72... Qe3 {[%clk 0:00:08.6]} 73. Kc2 {[%clk
0:00:09.1]} 73... Kd4 {[%clk 0:00:08.6]} 74. Kb1 {[%clk 0:00:10]} 74... c4
{[%clk 0:00:08.3]} 75. Kb2 {[%clk 0:00:10.9]} 75... c3+ {[%clk 0:00:08.6]} 76.
Kb1 {[%clk 0:00:11.8]} 76... Qd2 {[%clk 0:00:08.5]} 77. Ka1 {[%clk 0:00:12.1]}
77... Qb2# {[%clk 0:00:09.2]} 0-1

[Event "Late-Titled-Tuesday-Blitz-April-16-2024"]
[Site "Chess.com"]
[Date "2024.04.16"]
[Round "4"]
[White "LiemLe"]
[Black "Mops_2004"]
[Result "1-0"]
[WhiteElo "3046"]
[BlackElo "2811"]
[TimeControl "180+1"]
[EndTime "14:39:18 PDT"]
[Termination "LiemLe won by checkmate"]

1. Nf3 {[%clk 0:03:00.9]} 1... g6 {[%clk 0:03:00.2]} 2. d4 {[%clk 0:02:59.2]}
2... Bg7 {[%clk 0:03:00.3]} 3. e4 {[%clk 0:02:59.2]} 3... d6 {[%clk 0:03:00.3]}
4. Nc3 {[%clk 0:02:58.2]} 4... a6 {[%clk 0:03:00.2]} 5. a4 {[%clk 0:02:53.1]}
5... Nc6 {[%clk 0:02:59]} 6. Be3 {[%clk 0:02:52.1]} 6... Nf6 {[%clk 0:02:58.6]}
7. h3 {[%clk 0:02:51.2]} 7... O-O {[%clk 0:02:58.7]} 8. Bc4 {[%clk 0:02:42.7]}
8... e6 {[%clk 0:02:16.1]} 9. Bb3 {[%clk 0:02:37.4]} 9... b6 {[%clk 0:02:15.7]}
10. O-O {[%clk 0:02:26.8]} 10... Bb7 {[%clk 0:02:15.9]} 11. Qd3 {[%clk
0:02:08.9]} 11... Nb4 {[%clk 0:02:11.6]} 12. Qd2 {[%clk 0:02:09.4]} 12... a5
{[%clk 0:02:07.7]} 13. Bg5 {[%clk 0:02:07.6]} 13... h6 {[%clk 0:01:58.7]} 14.
Bxh6 {[%clk 0:02:04.8]} 14... Nxe4 {[%clk 0:01:58.5]} 15. Nxe4 {[%clk
0:02:04.9]} 15... Bxe4 {[%clk 0:01:59.4]} 16. Bxg7 {[%clk 0:02:04.9]} 16... Kxg7
{[%clk 0:01:59.6]} 17. Nh2 {[%clk 0:01:50.3]} 17... Qh4 {[%clk 0:01:55.6]} 18.
c3 {[%clk 0:01:49.2]} 18... Nc6 {[%clk 0:01:14.2]} 19. f3 {[%clk 0:01:30.1]}
19... Bd5 {[%clk 0:01:12.9]} 20. Bxd5 {[%clk 0:01:24.9]} 20... exd5 {[%clk
0:01:12.8]} 21. Rae1 {[%clk 0:01:25]} 21... Rae8 {[%clk 0:01:09.6]} 22. Ng4
{[%clk 0:01:16.1]} 22... Ne7 {[%clk 0:00:56.4]} 23. Re2 {[%clk 0:01:09.6]} 23...
Nf5 {[%clk 0:00:56.3]} 24. Rfe1 {[%clk 0:01:10]} 24... Rxe2 {[%clk 0:00:56]} 25.
Rxe2 {[%clk 0:01:10.9]} 25... Ng3 {[%clk 0:00:45.8]} 26. Re1 {[%clk 0:01:10.8]}
26... Nf5 {[%clk 0:00:45.9]} 27. Ne3 {[%clk 0:01:08.3]} 27... Nxe3 {[%clk
0:00:38.3]} 28. Qxe3 {[%clk 0:01:09.2]} 28... Rb8 {[%clk 0:00:26.5]} 29. Qe7
{[%clk 0:01:07.3]} 29... Qxe7 {[%clk 0:00:26]} 30. Rxe7 {[%clk 0:01:08.2]} 30...
Rc8 {[%clk 0:00:16.3]} 31. Kf2 {[%clk 0:01:05.7]} 31... Kf6 {[%clk 0:00:15.3]}
32. Re1 {[%clk 0:01:05.9]} 32... Rb8 {[%clk 0:00:10.5]} 33. Ke3 {[%clk
0:00:59.9]} 33... b5 {[%clk 0:00:10.3]} 34. Kd3 {[%clk 0:00:34.6]} 34... c5
{[%clk 0:00:07.4]} 35. axb5 {[%clk 0:00:29.4]} 35... Rxb5 {[%clk 0:00:07.7]} 36.
Kc2 {[%clk 0:00:27.3]} 36... cxd4 {[%clk 0:00:08.1]} 37. cxd4 {[%clk 0:00:28.2]}
37... Rb4 {[%clk 0:00:08.1]} 38. Kc3 {[%clk 0:00:23.4]} 38... Rc4+ {[%clk
0:00:08.2]} 39. Kd3 {[%clk 0:00:24]} 39... Rb4 {[%clk 0:00:09]} 40. Re2 {[%clk
0:00:23.9]} 40... Rb3+ {[%clk 0:00:09]} 41. Kc2 {[%clk 0:00:24.1]} 41... Rb4
{[%clk 0:00:09.6]} 42. Kc3 {[%clk 0:00:21.1]} 42... Rc4+ {[%clk 0:00:09.5]} 43.
Kd3 {[%clk 0:00:21.7]} 43... Rb4 {[%clk 0:00:10.4]} 44. h4 {[%clk 0:00:20.9]}
44... Rb3+ {[%clk 0:00:09.4]} 45. Kc2 {[%clk 0:00:21.3]} 45... Rb4 {[%clk
0:00:10.3]} 46. Kc3 {[%clk 0:00:21.9]} 46... Rc4+ {[%clk 0:00:10.5]} 47. Kd3
{[%clk 0:00:22.5]} 47... Rb4 {[%clk 0:00:11.4]} 48. Rc2 {[%clk 0:00:16.4]} 48...
Rb3+ {[%clk 0:00:11.6]} 49. Ke2 {[%clk 0:00:16.8]} 49... Rb4 {[%clk 0:00:11.2]}
50. Ke3 {[%clk 0:00:17.1]} 50... Rb3+ {[%clk 0:00:11.3]} 51. Kf2 {[%clk
0:00:16.4]} 51... Rb4 {[%clk 0:00:11.8]} 52. Rd2 {[%clk 0:00:14.6]} 52... Kf5
{[%clk 0:00:11.7]} 53. Ke3 {[%clk 0:00:13.3]} 53... Rb3+ {[%clk 0:00:11.9]} 54.
Kf2 {[%clk 0:00:14]} 54... Kf4 {[%clk 0:00:10.4]} 55. g3+ {[%clk 0:00:14.3]}
55... Kf5 {[%clk 0:00:10.8]} 56. Kg2 {[%clk 0:00:14]} 56... Kf6 {[%clk
0:00:08.6]} 57. g4 {[%clk 0:00:13.5]} 57... Rb4 {[%clk 0:00:07.6]} 58. Kg3
{[%clk 0:00:13.8]} 58... Rb3 {[%clk 0:00:08.1]} 59. Kf4 {[%clk 0:00:12.6]} 59...
Rb4 {[%clk 0:00:08.5]} 60. h5 {[%clk 0:00:13.1]} 60... g5+ {[%clk 0:00:06]} 61.
Kg3 {[%clk 0:00:13.5]} 61... Kg7 {[%clk 0:00:06]} 62. Kf2 {[%clk 0:00:11.6]}
62... Rb3 {[%clk 0:00:06.5]} 63. Rc2 {[%clk 0:00:12.1]} 63... Kf6 {[%clk
0:00:05]} 64. Kg3 {[%clk 0:00:11.4]} 64... Kg7 {[%clk 0:00:04.8]} 65. Rc6 {[%clk
0:00:11.2]} 65... Rxb2 {[%clk 0:00:04.1]} 66. Rxd6 {[%clk 0:00:11.9]} 66... Rb5
{[%clk 0:00:04.5]} 67. Ra6 {[%clk 0:00:06.5]} 67... Kh7 {[%clk 0:00:05]} 68. Kf2
{[%clk 0:00:05.6]} 68... Rb2+ {[%clk 0:00:05.2]} 69. Ke3 {[%clk 0:00:05.7]}
69... Rb3+ {[%clk 0:00:05.7]} 70. Ke2 {[%clk 0:00:06]} 70... Rb2+ {[%clk
0:00:06.3]} 71. Kd3 {[%clk 0:00:06.4]} 71... Rb3+ {[%clk 0:00:06.9]} 72. Ke2
{[%clk 0:00:06.5]} 72... Rb2+ {[%clk 0:00:07.1]} 73. Ke1 {[%clk 0:00:05.8]}
73... Rb3 {[%clk 0:00:08]} 74. Rxa5 {[%clk 0:00:05.6]} 74... Rxf3 {[%clk
0:00:08.1]} 75. Rxd5 {[%clk 0:00:06.3]} 75... Rf4 {[%clk 0:00:07.9]} 76. Rxg5
{[%clk 0:00:03.9]} 76... Rxd4 {[%clk 0:00:08]} 77. Kf2 {[%clk 0:00:04.6]} 77...
f6 {[%clk 0:00:07.8]} 78. Rg6 {[%clk 0:00:04.8]} 78... f5 {[%clk 0:00:06.8]} 79.
g5 {[%clk 0:00:05.4]} 79... Rd3 {[%clk 0:00:04.8]} 80. Rf6 {[%clk 0:00:04.8]}
80... Rh3 {[%clk 0:00:03.8]} 81. h6 {[%clk 0:00:05.2]} 81... Rh5 {[%clk
0:00:02.7]} 82. Rf7+ {[%clk 0:00:05.4]} 82... Kg6 {[%clk 0:00:02.7]} 83. Rg7#
{[%clk 0:00:05.8]} 1-0

[Event "Late-Titled-Tuesday-Blitz-April-16-2024"]
[Site "Chess.com"]
[Date "2024.04.16"]
[Round "4"]
[White "GM_dmitrij"]
[Black "Jimonios"]
[Result "1-0"]
[WhiteElo "2990"]
[BlackElo "2614"]
[TimeControl "180+1"]
[EndTime "14:39:21 PDT"]
[Termination "GM_dmitrij won by resignation"]

1. d4 {[%clk 0:03:00.9]} 1... Nf6 {[%clk 0:03:00.5]} 2. c4 {[%clk 0:03:00.2]}
2... g6 {[%clk 0:03:00.9]} 3. Nc3 {[%clk 0:03:00.3]} 3... Bg7 {[%clk 0:03:01.6]}
4. e4 {[%clk 0:03:00.3]} 4... d6 {[%clk 0:03:02.2]} 5. Be2 {[%clk 0:03:00.6]}
5... e5 {[%clk 0:03:00.7]} 6. dxe5 {[%clk 0:02:57.8]} 6... dxe5 {[%clk
0:03:01.6]} 7. Qxd8+ {[%clk 0:02:57.1]} 7... Kxd8 {[%clk 0:03:02.5]} 8. Be3
{[%clk 0:02:57.3]} 8... Be6 {[%clk 0:02:57.2]} 9. Nf3 {[%clk 0:02:56]} 9... Nc6
{[%clk 0:02:44.6]} 10. O-O-O+ {[%clk 0:02:54.6]} 10... Nd7 {[%clk 0:02:44.3]}
11. Ng5 {[%clk 0:02:53.8]} 11... Nd4 {[%clk 0:02:39.8]} 12. Nxe6+ {[%clk
0:02:48.4]} 12... fxe6 {[%clk 0:02:34.3]} 13. Bg4 {[%clk 0:02:48.2]} 13... Ke7
{[%clk 0:01:11.4]} 14. Nb5 {[%clk 0:02:37.5]} 14... c5 {[%clk 0:01:07.5]} 15.
Nc7 {[%clk 0:02:24.2]} 15... Rac8 {[%clk 0:01:02]} 16. Nb5 {[%clk 0:02:08.8]}
16... a6 {[%clk 0:00:57.7]} 17. Nc3 {[%clk 0:02:09.2]} 17... b5 {[%clk
0:00:56.8]} 18. b3 {[%clk 0:02:09.2]} 18... bxc4 {[%clk 0:00:52.2]} 19. bxc4
{[%clk 0:02:10.1]} 19... Nb6 {[%clk 0:00:49.5]} 20. Be2 {[%clk 0:02:02.4]} 20...
Nxe2+ {[%clk 0:00:48.8]} 21. Nxe2 {[%clk 0:02:03.3]} 21... Nxc4 {[%clk
0:00:49.3]} 22. Kc2 {[%clk 0:01:54]} 22... Nxe3+ {[%clk 0:00:44]} 23. fxe3
{[%clk 0:01:54.9]} 23... Bh6 {[%clk 0:00:44.4]} 24. Rd3 {[%clk 0:01:54.5]} 24...
Rhf8 {[%clk 0:00:44.8]} 25. Rhd1 {[%clk 0:01:40.9]} 25... Rf2 {[%clk 0:00:36.8]}
26. R1d2 {[%clk 0:01:37.1]} 26... Rxg2 {[%clk 0:00:32]} 27. Rd7+ {[%clk
0:01:36.9]} 27... Ke8 {[%clk 0:00:31.9]} 28. Rxh7 {[%clk 0:01:36]} 28... Bf8
{[%clk 0:00:19.4]} 29. h4 {[%clk 0:01:31.7]} 29... Rb8 {[%clk 0:00:17.4]} 30.
Ra7 {[%clk 0:01:23.9]} 30... Bh6 {[%clk 0:00:07.2]} 31. Nc3 {[%clk 0:01:18.3]}
31... Rxd2+ {[%clk 0:00:06.7]} 32. Kxd2 {[%clk 0:01:19.2]} 32... Rb6 {[%clk
0:00:05.7]} 33. Kd3 {[%clk 0:01:16.4]} 33... Bf8 {[%clk 0:00:04.8]} 34. a3
{[%clk 0:01:10.4]} 34... Be7 {[%clk 0:00:03.4]} 35. Ra8+ {[%clk 0:01:06]} 35...
Kf7 {[%clk 0:00:03.4]} 36. Ra7 {[%clk 0:01:05.9]} 36... Kf8 {[%clk 0:00:02.7]}
37. Kc4 {[%clk 0:01:04]} 37... Bxh4 {[%clk 0:00:02.1]} 38. Na4 {[%clk
0:00:41.8]} 38... Rb1 {[%clk 0:00:02.1]} 39. Rxa6 {[%clk 0:00:38.4]} 39... Be7
{[%clk 0:00:01.6]} 40. Rxe6 {[%clk 0:00:36]} 40... Rc1+ {[%clk 0:00:02.1]} 41.
Nc3 {[%clk 0:00:32.2]} 41... Kf7 {[%clk 0:00:02]} 42. Ra6 {[%clk 0:00:30.9]}
42... g5 {[%clk 0:00:02.3]} 43. Kd3 {[%clk 0:00:27.8]} 43... g4 {[%clk
0:00:02.7]} 44. Ne2 {[%clk 0:00:28.1]} 44... Re1 {[%clk 0:00:02.1]} 45. Ng3
{[%clk 0:00:27.2]} 45... Ra1 {[%clk 0:00:02.4]} 46. Nf5 {[%clk 0:00:26.2]} 46...
Rxa3+ {[%clk 0:00:03.1]} 47. Rxa3 {[%clk 0:00:23.9]} 47... c4+ {[%clk
0:00:03.3]} 48. Kxc4 {[%clk 0:00:24.4]} 48... Bxa3 {[%clk 0:00:04.2]} 49. Nh6+
{[%clk 0:00:25]} 49... Ke6 {[%clk 0:00:03.6]} 50. Nxg4 {[%clk 0:00:25.9]} 50...
Bd6 {[%clk 0:00:03.8]} 51. Nh6 {[%clk 0:00:24.8]} 51... Bb8 {[%clk 0:00:04.7]}
52. Nf5 {[%clk 0:00:25.3]} 52... Bc7 {[%clk 0:00:05.2]} 53. Kc5 {[%clk
0:00:25.3]} 53... Bb8 {[%clk 0:00:06.1]} 54. Kc6 {[%clk 0:00:25.7]} 54... Ba7
{[%clk 0:00:06.4]} 55. Kb5 {[%clk 0:00:24.8]} 55... Kd7 {[%clk 0:00:05.1]} 56.
Kc4 {[%clk 0:00:23.6]} 56... Kc6 {[%clk 0:00:05.1]} 57. Ne7+ {[%clk 0:00:22.9]}
57... Kd6 {[%clk 0:00:05.3]} 58. Nd5 {[%clk 0:00:23.8]} 58... Bb8 {[%clk
0:00:04.4]} 59. Nc3 {[%clk 0:00:21.9]} 59... Ke6 {[%clk 0:00:04.7]} 60. Nb5
{[%clk 0:00:22.2]} 60... Kf6 {[%clk 0:00:02.9]} 61. Kd5 {[%clk 0:00:21.5]} 61...
Kg5 {[%clk 0:00:03.4]} 62. Nd6 {[%clk 0:00:15.5]} 62... Kf6 {[%clk 0:00:03]} 63.
Nc8 {[%clk 0:00:12.8]} 63... Kg5 {[%clk 0:00:02.5]} 64. Ne7 {[%clk 0:00:11.6]}
64... Kf6 {[%clk 0:00:02.2]} 65. Nc6 {[%clk 0:00:11.6]} 65... Bc7 {[%clk
0:00:02.9]} 66. Kc5 {[%clk 0:00:12]} 66... Ke6 {[%clk 0:00:02.8]} 67. Nb4 {[%clk
0:00:11.7]} 67... Bd6+ {[%clk 0:00:03.4]} 68. Kb5 {[%clk 0:00:11.8]} 68... Bf8
{[%clk 0:00:04.2]} 69. Nd3 {[%clk 0:00:10.9]} 69... Bh6 {[%clk 0:00:05.1]} 70.
Nc5+ {[%clk 0:00:10.3]} 70... Ke7 {[%clk 0:00:03.6]} 71. Nd3 {[%clk 0:00:09.9]}
71... Kd6 {[%clk 0:00:04.2]} 72. Nb2 {[%clk 0:00:09.1]} 72... Bxe3 {[%clk
0:00:04.7]} 73. Nc4+ {[%clk 0:00:10]} 73... Ke6 {[%clk 0:00:04.9]} 74. Nxe3
{[%clk 0:00:10.9]} 74... Ke7 {[%clk 0:00:05.8]} 75. Nc4 {[%clk 0:00:11]} 75...
Ke6 {[%clk 0:00:06.7]} 76. Kc5 {[%clk 0:00:11.6]} 76... Kd7 {[%clk 0:00:07]} 77.
Kd5 {[%clk 0:00:12.5]} 77... Ke7 {[%clk 0:00:07.9]} 78. Nxe5 {[%clk 0:00:13.2]}
1-0

[Event "Late-Titled-Tuesday-Blitz-April-16-2024"]
[Site "Chess.com"]
[Date "2024.04.16"]
[Round "4"]
[White "Attacker_2006"]
[Black "StopLookingAtMyProfile"]
[Result "1/2-1/2"]
[WhiteElo "2500"]
[BlackElo "2340"]
[TimeControl "180+1"]
[EndTime "14:39:25 PDT"]
[Termination "Game drawn - insufficient material"]

1. e4 {[%clk 0:02:57.8]} 1... e6 {[%clk 0:02:59.8]} 2. d3 {[%clk 0:02:57.4]}
2... d5 {[%clk 0:03:00.1]} 3. Nd2 {[%clk 0:02:58.3]} 3... c5 {[%clk 0:03:00.6]}
4. Ngf3 {[%clk 0:02:58.7]} 4... Nc6 {[%clk 0:03:01]} 5. g3 {[%clk 0:02:59.4]}
5... Nf6 {[%clk 0:03:01.5]} 6. Bg2 {[%clk 0:03:00.1]} 6... Be7 {[%clk
0:03:02.2]} 7. O-O {[%clk 0:03:00.7]} 7... O-O {[%clk 0:03:02.8]} 8. e5 {[%clk
0:03:01.5]} 8... Nd7 {[%clk 0:03:03]} 9. Qe2 {[%clk 0:03:02.2]} 9... Qc7 {[%clk
0:03:03.2]} 10. Re1 {[%clk 0:03:02.8]} 10... b5 {[%clk 0:03:03.9]} 11. Nf1
{[%clk 0:03:03.4]} 11... Bb7 {[%clk 0:03:04.4]} 12. Bf4 {[%clk 0:03:03.4]} 12...
Rfc8 {[%clk 0:03:05.1]} 13. h4 {[%clk 0:03:04]} 13... Qd8 {[%clk 0:03:04.1]} 14.
N1h2 {[%clk 0:03:03.7]} 14... a5 {[%clk 0:03:03.1]} 15. h5 {[%clk 0:03:00.4]}
15... h6 {[%clk 0:03:03.2]} 16. Ng4 {[%clk 0:02:59.6]} 16... Nf8 {[%clk
0:03:03.3]} 17. Qd2 {[%clk 0:02:54.6]} 17... Nh7 {[%clk 0:03:02.8]} 18. a4
{[%clk 0:02:49.2]} 18... bxa4 {[%clk 0:02:55]} 19. Rxa4 {[%clk 0:02:48.3]} 19...
Bf8 {[%clk 0:02:55.4]} 20. Bxh6 {[%clk 0:02:43.1]} 20... gxh6 {[%clk 0:02:51.3]}
21. Nxh6+ {[%clk 0:02:43.8]} 21... Bxh6 {[%clk 0:02:47.1]} 22. Qxh6 {[%clk
0:02:31.9]} 22... d4 {[%clk 0:02:41.2]} 23. Nh4 {[%clk 0:02:27]} 23... Qg5
{[%clk 0:02:33.3]} 24. Qxg5+ {[%clk 0:02:23.3]} 24... Nxg5 {[%clk 0:02:34.2]}
25. f4 {[%clk 0:02:23.6]} 25... Nh7 {[%clk 0:02:31.9]} 26. Rea1 {[%clk
0:02:21.7]} 26... Rc7 {[%clk 0:02:26.7]} 27. Nf3 {[%clk 0:02:20.1]} 27... Nf8
{[%clk 0:02:19.8]} 28. Nd2 {[%clk 0:02:18.7]} 28... Nb4 {[%clk 0:02:09.9]} 29.
Bxb7 {[%clk 0:02:10.7]} 29... Rxb7 {[%clk 0:02:10.8]} 30. Rxa5 {[%clk
0:02:11.4]} 30... Rxa5 {[%clk 0:02:10.2]} 31. Rxa5 {[%clk 0:02:12.1]} 31... Nxc2
{[%clk 0:02:10.7]} 32. Rxc5 {[%clk 0:02:12.7]} 32... Rxb2 {[%clk 0:02:11]} 33.
Ne4 {[%clk 0:02:10.4]} 33... Ne3 {[%clk 0:02:02.2]} 34. h6 {[%clk 0:02:06]}
34... Kh7 {[%clk 0:01:59.8]} 35. Rc8 {[%clk 0:01:41.8]} 35... Ng6 {[%clk
0:01:43.3]} 36. Ng5+ {[%clk 0:01:39.4]} 36... Kxh6 {[%clk 0:01:42.6]} 37. Nxf7+
{[%clk 0:01:40.1]} 37... Kg7 {[%clk 0:01:41.2]} 38. Ng5 {[%clk 0:01:39]} 38...
Rg2+ {[%clk 0:01:39.4]} 39. Kh1 {[%clk 0:01:39.1]} 39... Rxg3 {[%clk 0:01:38]}
40. Rc7+ {[%clk 0:01:38.5]} 40... Kg8 {[%clk 0:01:36.3]} 41. Rc8+ {[%clk
0:01:34.5]} 41... Kg7 {[%clk 0:01:35.2]} 42. Nxe6+ {[%clk 0:01:28.6]} 42... Kf7
{[%clk 0:01:32.1]} 43. Ng5+ {[%clk 0:01:17.4]} 43... Ke7 {[%clk 0:01:30.8]} 44.
e6 {[%clk 0:00:59.7]} 44... Nxf4 {[%clk 0:01:13.3]} 45. Rc7+ {[%clk 0:00:59.1]}
45... Ke8 {[%clk 0:01:12.6]} 46. Rc8+ {[%clk 0:00:55.6]} 46... Ke7 {[%clk
0:01:12.5]} 47. Rc7+ {[%clk 0:00:54.9]} 47... Kd8 {[%clk 0:01:01.8]} 48. Rd7+
{[%clk 0:00:49]} 48... Ke8 {[%clk 0:01:01.4]} 49. Rxd4 {[%clk 0:00:39.4]} 49...
Rxg5 {[%clk 0:00:45.1]} 50. Rxf4 {[%clk 0:00:38.2]} 50... Ke7 {[%clk 0:00:42.2]}
51. Re4 {[%clk 0:00:35.4]} 51... Ng4 {[%clk 0:00:41.4]} 52. Re2 {[%clk
0:00:28.3]} 52... Rd5 {[%clk 0:00:37.9]} 53. Kg2 {[%clk 0:00:27.6]} 53... Rxd3
{[%clk 0:00:37.1]} 54. Re4 {[%clk 0:00:26.5]} 54... Nf6 {[%clk 0:00:35.2]} 55.
Re1 {[%clk 0:00:25.8]} 55... Nd5 {[%clk 0:00:34]} 56. Re4 {[%clk 0:00:23.9]}
56... Nc7 {[%clk 0:00:33]} 57. Kf2 {[%clk 0:00:22.4]} 57... Nxe6 {[%clk
0:00:33.1]} 58. Re3 {[%clk 0:00:23.1]} 58... Rd2+ {[%clk 0:00:32.5]} 59. Ke1
{[%clk 0:00:23.8]} 59... Rd6 {[%clk 0:00:32.6]} 60. Ra3 {[%clk 0:00:24.3]} 60...
Kf6 {[%clk 0:00:32]} 61. Rf3+ {[%clk 0:00:24.9]} 61... Ke5 {[%clk 0:00:32.4]}
62. Re3+ {[%clk 0:00:25.5]} 62... Kf4 {[%clk 0:00:32.4]} 63. Re2 {[%clk
0:00:25.4]} 63... Ra6 {[%clk 0:00:32.6]} 64. Rf2+ {[%clk 0:00:23.8]} 64... Ke5
{[%clk 0:00:32.7]} 65. Re2+ {[%clk 0:00:24.2]} 65... Kd5 {[%clk 0:00:32.3]} 66.
Rd2+ {[%clk 0:00:23.8]} 66... Nd4 {[%clk 0:00:32.6]} 67. Kf2 {[%clk 0:00:24.2]}
67... Ke4 {[%clk 0:00:33]} 68. Rd1 {[%clk 0:00:21.4]} 68... Rg6 {[%clk
0:00:32.5]} 69. Re1+ {[%clk 0:00:21.1]} 69... Kf4 {[%clk 0:00:32.2]} 70. Re8
{[%clk 0:00:21.3]} 70... Nf5 {[%clk 0:00:30.7]} 71. Ra8 {[%clk 0:00:21.4]} 71...
Rb6 {[%clk 0:00:30.8]} 72. Ra4+ {[%clk 0:00:21.7]} 72... Ke5 {[%clk 0:00:29.7]}
73. Ra5+ {[%clk 0:00:21.7]} 73... Ke4 {[%clk 0:00:29.5]} 74. Ra2 {[%clk
0:00:21.4]} 74... Rh6 {[%clk 0:00:28.1]} 75. Ra4+ {[%clk 0:00:19.5]} 75... Nd4
{[%clk 0:00:28.6]} 76. Ra8 {[%clk 0:00:17]} 76... Kf4 {[%clk 0:00:26.5]} 77.
Rf8+ {[%clk 0:00:16.2]} 77... Nf5 {[%clk 0:00:27]} 78. Ke2 {[%clk 0:00:15.8]}
78... Rd6 {[%clk 0:00:25.7]} 79. Ra8 {[%clk 0:00:14.7]} 79... Nd4+ {[%clk
0:00:25.7]} 80. Kd3 {[%clk 0:00:14.2]} 80... Ne6+ {[%clk 0:00:24.9]} 81. Kc4
{[%clk 0:00:14.3]} 81... Rd4+ {[%clk 0:00:24.9]} 82. Kb5 {[%clk 0:00:13.6]}
82... Nc7+ {[%clk 0:00:25]} 83. Kc5 {[%clk 0:00:14.2]} 83... Rd5+ {[%clk
0:00:22.9]} 84. Kc6 {[%clk 0:00:14.6]} 84... Nxa8 {[%clk 0:00:20.8]} 85. Kxd5
{[%clk 0:00:14.2]} 1/2-1/2